Cogmind - Beta 15 @@@ ROGUE MODE // 2025.07.27 @ 17:31:01 Player: aloola Result: Destroyed by H-88 Terminator with KE Penetrator Performance ------------- Evolutions (8) 4000 Regions Visited (20) 4000 Robots Destroyed (211) 1055 Value Destroyed (8982) 8982 Prototype IDs (69) 1380 Alien Tech Used (0) 0 Bonus (6406) 6406 TOTAL SCORE: 25823 Bonus ------- High Alert Combat Kills 264 Follower Combat Kills 1772 Network Hubs Disabled 200 Aligned with FarCom 300 Met Data Miner 300 Met Zhirov 300 Built Enhanced Grunts 300 A7 Reached Mainframe 300 Met R17 at Cetus 500 Read Decrypted Archives 300 Met R17 at Research 2000 Friendly Fire -130 Cogmind --------- Core Integrity 0/1450 Matter 177/300 Energy 100/100 System Corruption 40% Temperature Cool (0) Movement Core (50) Location -2/Research Parts ------- > --- POWER (2) -------- (None) > --- PROPULSION (5) --- (None) > --- UTILITY (11) ----- Advanced Targeting Computer Advanced Targeting Computer Advanced Targeting Computer Experimental System Shield > --- WEAPON (5) ------- (None) > --- INVENTORY (5) ---- Guided Micro-nuke Launcher Guided Micro-nuke Launcher Peak State ------------ > --- POWER ------------ Micro Antimatter Reactor Graviton Reactor > --- PROPULSION ------- Heavy Armored Exoskeleton Centrium Leg > --- UTILITY ---------- Advanced Cryofiber Web Advanced Heat Sink High-capacity Storage Unit Advanced Terrain Scan Processor Advanced Targeting Computer Advanced Targeting Computer Advanced Targeting Computer Experimental Power Shielding Advanced Shield Generator Advanced Hacking Suite Experimental System Shield > --- WEAPON ----------- Cooled Plasma Rifle Quantum Rifle Enhanced Nova Cannon KE Penetrator Compact Linear Accelerator > --- INVENTORY -------- Micro Fission Core Improved Quantum Reactor Centrium Leg Centrium Leg Centrium Leg Centrium Leg Advanced Terrain Scanner Centrium Medium Armor Plating Heavy Reactive Plating Improved Thermal Shield System Shield Tesla Rifle Improved Arc Projector Disruptor Cannon Enhanced Nova Cannon Heavy Linear Accelerator Enhanced Hardcell Cannon Nanosword [Rating: 164] Favorites ----------- Power Micro Fission Core Engine Light Angular Momentum Engine Power Core Micro Fission Core Reactor Quantum Reactor Propulsion Potential Leg Treads Light Treads Leg Potential Leg Wheel Armored Wheel Hover Unit Gravmag Array Flight Unit Improved Cesium-ion Thruster Utility High-capacity Storage Unit Device Improved Cooling System Storage High-capacity Storage Unit Processor Advanced Targeting Computer Hackware System Shield Protection Improved Light Armor Plating Weapon Pulse Rifle Energy Gun Pulse Rifle Energy Cannon Plasma Cannon Ballistic Gun Advanced KE Penetrator Ballistic Cannon Linear Accelerator Launcher Improved Proton Missile Launcher Special Weapon Plasma Cutter Slashing Weapon Power Sword Special Melee Weapon Datajack Build | -11 -10 -9 -9 -9 -8 -8 -7 -7 -7 -7 -6 -6 -6 -6 -6 -6 -5 -4 -3 -2 ------- Run | Yrd Mat Mat Min Exi Min Mat Fac Low Low Dat Pro Fac Ext Cet Arc Hub Fac Fac Res Res Slots Evolved 16 | . . 2 . . . 2 2 . . . . 2 . . . . 2 2 2 2 Power 1 | . . . . . . . . . . . . 1 . . . . . . . . Propulsion 3 | . . 1 . . . . . . . . . 1 . . . . . . 1 . Utility 9 | . . 1 . . . 1 1 . . . . . . . . . 1 2 1 2 Weapon 3 | . . . . . . 1 1 . . . . . . . . . 1 . . . Parts Attached 225 | 7 11 15 . 2 1 7 8 . 4 . 4 23 23 4 . 6 25 37 21 27 Power 23 | 1 2 2 . . . . 1 . . . 1 4 2 . . 2 2 4 1 1 Engine 12 | 1 2 2 . . . . 1 . . . 1 2 1 . . . 1 1 . . Core 6 | . . . . . . . . . . . . 2 1 . . 1 1 1 . . Reactor 5 | . . . . . . . . . . . . . . . . 1 . 2 1 1 Propulsion 68 | 2 3 7 . 2 1 1 1 . . . 1 4 9 1 . . 14 4 9 9 Treads 19 | . . 7 . . . . . . . . . . 9 1 . . . . . 2 Leg 45 | 2 3 . . 2 1 1 1 . . . 1 3 . . . . 11 4 9 7 Wheel 2 | . . . . . . . . . . . . 1 . . . . 1 . . . Hover 1 | . . . . . . . . . . . . . . . . . 1 . . . Flight 1 | . . . . . . . . . . . . . . . . . 1 . . . Utility 69 | 2 3 4 . . . 4 3 . 2 . . 8 5 2 . 1 5 15 7 8 Device 35 | 1 2 2 . . . 3 2 . 1 . . 1 2 . . 1 3 9 4 4 Storage 7 | 1 1 2 . . . . . . . . . 1 . . . . . 1 1 . Processor 10 | . . . . . . 1 . . . . . 2 1 1 . . 1 2 2 . Hackware 7 | . . . . . . . . . . . . 3 . . . . 1 1 . 2 Protection 10 | . . . . . . . 1 . 1 . . 1 2 1 . . . 2 . 2 Artifact . | . . . . . . . . . . . . . . . . . . . . . Weapon 65 | 2 3 2 . . . 2 3 . 2 . 2 7 7 1 . 3 4 14 4 9 Energy Gun 29 | . 3 . . . . . 1 . 2 . . 6 5 . . 2 1 7 1 1 Energy Cannon 9 | . . . . . . 2 2 . . . . . . . . . . 2 . 3 Ballistic Gun 10 | 2 . . . . . . . . . . . 1 . 1 . . 3 3 . . Ballistic Cannon 6 | . . . . . . . . . . . 1 . . . . . . 1 1 3 Launcher 5 | . . 1 . . . . . . . . . . 1 . . . . 1 . 2 Special Weapon 1 | . . . . . . . . . . . . . . . . 1 . . . . Impact Weapon . | . . . . . . . . . . . . . . . . . . . . . Slashing Weapon 3 | . . . . . . . . . . . 1 . 1 . . . . . 1 . Piercing Weapon . | . . . . . . . . . . . . . . . . . . . . . Special Melee Weapon 2 | . . 1 . . . . . . . . . . . . . . . . 1 . Unidentified Prototypes 21 | . . . . . . 1 . . . . . 1 . 3 . 1 2 1 5 7 Corrupted Parts 3 | . . . . . . . . . . . . . 1 . . 1 . 1 . . System Corruption 9 | . . . . . . . . . . . . . 3 . . 5 . 1 . . Parts Lost 82 | . 3 . . . . . 1 1 . . 9 4 . . 2 7 10 18 . 27 Power 12 | . . . . . . . . . . . 2 . . . 1 1 2 3 . 3 Propulsion 19 | . 2 . . . . . . . . . 2 1 . . 1 1 3 4 . 5 Utility 18 | . . . . . . . . 1 . . 2 . . . . 1 1 4 . 9 Weapon 33 | . 1 . . . . . 1 . . . 3 3 . . . 4 4 7 . 10 Highest Loss Streak 12 | . 2 . . . . . 1 1 . . 5 2 . . 2 5 2 12 . 10 To Critical Strikes 3 | . . . . . . . . . . . . . . . . . 1 1 . 1 Average Backups 17 | 6 9 14 20 20 20 19 19 20 20 20 19 19 19 19 20 19 19 18 19 16 Power 1 | . . 1 1 1 1 1 1 1 1 1 . 1 2 2 2 1 2 1 . 1 Propulsion 2 | 3 3 . 3 3 3 1 3 3 3 3 3 . . . . . 1 2 1 3 Utility 8 | . 3 7 10 10 10 9 8 9 9 9 10 11 10 9 10 10 10 7 8 4 Weapon 5 | . . 4 5 5 5 7 5 6 6 6 5 4 4 6 7 6 4 6 8 6 Tool/Special . | . . . . . . . . . . . . . . . . . . . . . Unused Backups 60 | . 4 5 . . 1 10 3 2 1 . 1 3 5 . . 2 1 5 6 11 Power 3 | . . 1 . . . . . . . . . . 1 . . . . . . 1 Propulsion 8 | . 2 . . . 1 1 . . . . . . . . . . . 2 . 2 Utility 23 | . 1 1 . . . 5 3 . . . . 3 4 . . 1 1 1 1 2 Weapon 25 | . 1 3 . . . 4 . 2 1 . 1 . . . . 1 . 2 4 6 Tool/Special 1 | . . . . . . . . . . . . . . . . . . . 1 . Average Slot Usage (%) 92 | . 99 99 100 100 100 98 99 94 99 100 92 86 99 97 86 79 84 90 88 78 Engine 5 | . 14 11 11 11 11 9 7 7 7 7 5 2 3 6 6 6 4 1 . . Core 2 | . . . . . . . . . . . . 7 8 6 3 4 2 4 4 . Reactor 1 | . . . . . . . . . . . . . . . . . 1 4 4 6 Treads 6 | . . 32 33 30 2 . . . . . . . 21 23 16 6 . . . . Leg 15 | . 27 . . 2 30 27 23 23 23 23 21 21 3 . . . 16 20 16 8 Device 13 | . 14 21 22 22 22 18 15 15 17 23 22 6 6 6 6 11 14 11 9 13 Storage 6 | . 14 11 11 11 11 9 7 7 7 7 7 6 6 6 6 6 5 5 4 3 Processor 5 | . . . . . . 7 7 1 . . . 4 . 1 6 6 5 9 17 17 Hackware 5 | . . . . . . . . . . . . 9 13 11 6 6 7 10 8 6 Protection 2 | . . . . . . . 6 7 11 7 5 3 4 6 6 1 . 1 . 1 Energy Gun 12 | . 7 19 22 11 22 9 4 7 14 15 12 18 23 22 20 19 10 7 4 4 Energy Cannon 5 | . . . . . . 17 25 22 7 7 6 . . . . . . 1 7 6 Ballistic Gun 3 | . 20 . . . . . . . . . . 1 1 3 6 6 9 8 . 1 Peak Build Rating 164 | 7 10 17 17 35 36 44 60 57 58 58 60 70 60 84 82 85 96 120 138 164 Average Rating 65 | 6 8 13 17 18 35 43 55 56 57 58 54 55 55 71 78 71 85 101 119 145 On Entrance 50 | . 7 10 17 17 35 36 44 57 54 58 58 18 59 58 82 75 58 96 84 138 Naked Turns . | . . . . . . . . . . . . . . . . . . . . . Heaviest Build 160 | 14 22 53 53 53 53 61 82 77 74 73 73 78 81 83 83 101 96 105 151 160 Greatest Support 145 | 20 20 63 63 63 75 77 77 77 77 77 77 79 86 120 120 100 89 93 121 145 Greatest Overweight (x) 6 | . 2 . . 1 . . 1 . . . 1 6 6 . . 1 5 1 1 1 Average Overweight (x) . | . . . . . . . . . . . . . 1 . . . . . . . Largest Inventory Capacity 25 | 8 10 20 20 20 20 20 20 20 20 20 20 20 20 20 20 20 20 20 25 20 Average Capacity 18 | 7 9 15 20 20 20 20 20 20 20 20 20 20 20 20 20 20 20 20 20 19 Most Carried 20 | 7 10 20 20 20 20 20 20 20 20 20 20 20 20 20 20 20 20 20 20 20 Average Carried 18 | 6 9 14 20 20 20 19 19 20 19 20 19 19 19 19 20 19 19 19 19 18 Final Capacity 20 | 8 10 20 20 20 20 20 20 20 20 20 20 20 20 20 20 20 20 20 20 5 Final Carried 20 | 7 10 20 20 20 20 20 20 20 20 20 20 20 20 20 20 19 20 19 20 4 Class Distribution -------------------- 23% | Mutant 18% | Hacker-Skirmisher 15% | Skirmisher 11% | Scavenger-Skirmisher 8% | Tank 8% | Commander-Skirmisher 5% | Scavenger-Tank Dominant Class ---------------- Mutant | -10/Materials Mutant | -9/Materials Mutant | -9/Mines Mutant | -9/Exiles Mutant | -8/Mines Skirmisher | -8/Materials Skirmisher | -7/Factory Tank | -7/Lower Caves Tank | -7/Lower Caves Tank | -7/Data Miner Tank | -6/Proximity Caves Hacker-Skirmisher | -6/Factory Commander-Skirmisher | -6/Extension Commander-Skirmisher | -6/Cetus Scavenger-Tank | -6/Archives Scavenger-Tank | -6/Hub_04(d) Scavenger-Skirmisher | -5/Factory Scavenger-Skirmisher | -4/Factory Hacker-Skirmisher | -3/Research Skirmisher | -2/Research Resources | -11 -10 -9 -9 -9 -8 -8 -7 -7 -7 -7 -6 -6 -6 -6 -6 -6 -5 -4 -3 -2 ----------- Run | Yrd Mat Mat Min Exi Min Mat Fac Low Low Dat Pro Fac Ext Cet Arc Hub Fac Fac Res Res Matter Collected 5257 | 257 339 232 . . 79 71 185 28 40 . 47 331 348 76 . 100 605 1154 475 890 Remotely . | . . . . . . . . . . . . . . . . . . . . . Salvage Created 8979 | 29 522 287 . . 26 122 581 276 . . 386 1065 260 163 . 209 1921 1302 281 1549 Parts 440 | 4 32 16 . . 4 6 27 23 . . 9 35 15 9 . 23 89 72 9 67 Haulers Intercepted 5 | . 1 . . . . 1 1 . . . . 1 . . . . 1 . . . Recyclers Shooed 9 | 1 . . . . . 1 . . . . . 2 . . . 1 2 . 2 . Parts Field Recycled . | . . . . . . . . . . . . . . . . . . . . . Retrieved Matter . | . . . . . . . . . . . . . . . . . . . . . Parts Self-Destructed 26 | . . . . . . . . 19 . . 7 . . . . . . . . . Prevented 7 | . . . . . . . . 2 . . 5 . . . . . . . . . Kills | -11 -10 -9 -9 -9 -8 -8 -7 -7 -7 -7 -6 -6 -6 -6 -6 -6 -5 -4 -3 -2 ------- Run | Yrd Mat Mat Min Exi Min Mat Fac Low Low Dat Pro Fac Ext Cet Arc Hub Fac Fac Res Res Combat Hostiles Destroyed 168 | . 14 10 . . 2 1 13 11 . . 7 16 4 2 . 6 22 25 3 32 Guns 110 | . 14 10 . . 2 . 2 3 . . 4 13 4 2 . 6 22 15 . 13 Cannons 39 | . . . . . . 1 9 5 . . . 1 . . . . . 7 1 15 AOE 10 | . . . . . . . . 3 . . 1 . . . . . . 2 1 3 Classes Destroyed 17 | 1 6 3 . . . . 2 . . . 1 . . 1 . . . . . 3 Worker 9 | . . . . . . . 2 . . . . 1 . . . . 3 1 . 2 Builder 13 | . 1 . . . . . . . . . . . 1 . . . 4 1 . 6 Tunneler 1 | 1 . . . . . . . . . . . . . . . . . . . . Hauler 5 | . 1 . . . . 1 1 . . . . 1 . . . . 1 . . . Recycler 7 | . 1 . . . . . . . . . . 2 . . . . 4 . . . Operator 4 | . 1 . . . . 1 . . . . . . 1 . . . . . 1 . Watcher 3 | . . 1 . . . 1 . . . . . 1 . . . . . . . . Swarmer 58 | . 9 3 . . 2 . 5 10 . . 1 7 . . . 3 4 7 . 7 Saboteur 1 | . . . . . . . . . . . . . . . . . . . . 1 Grunt 38 | . 5 5 . . . . 3 1 . . 3 3 2 . . . 9 5 2 . Brawler 5 | . . 1 . . . . 1 . . . 1 . 1 . . . 1 . . . Sentry 11 | . . 1 . . . 1 1 . . . . 2 1 . . . 1 2 1 1 Specialist 1 | . . . . . . . . . . . . . . . . . . . . 1 Hunter 17 | . . . . . . . . . . . 2 . . . . 2 2 5 . 6 Programmer 34 | . . . . . . . 3 . . . . 4 . . . 1 5 6 . 15 Cetus Guard 2 | . . . . . . . . . . . . . . 2 . . . . . . Executioner 1 | . . . . . . . . . . . . . . . . . . . . 1 Butcher 1 | . . . . . . . . . . . . . . 1 . . . . . . Best Kill Streak 16 | 1 4 4 . . 2 1 5 4 . . 4 5 1 2 . 3 7 7 1 16 Combat Bots Only 12 | . 3 4 . . 2 1 4 4 . . 4 4 1 2 . 3 5 6 1 12 Max Kills in Single Turn 5 | 1 2 2 . . 1 1 2 2 . . 1 1 1 1 . 2 3 2 1 5 Gunslinging 1 | . 1 1 . . . . . . . . . . . . . 1 1 . . . Exploded 2 | . . . . . . . . 2 . . 1 . . . . . . 2 1 2 Melee . | . . . . . . . . . . . . . . . . . . . . . Uniques/NPCs Destroyed . | . . . . . . . . . . . . . . . . . . . . . Combat | -11 -10 -9 -9 -9 -8 -8 -7 -7 -7 -7 -6 -6 -6 -6 -6 -6 -5 -4 -3 -2 -------- Run | Yrd Mat Mat Min Exi Min Mat Fac Low Low Dat Pro Fac Ext Cet Arc Hub Fac Fac Res Res Hostile Shots Fired 1870 | . 80 47 . . 8 2 66 56 . . 143 134 37 24 . 48 136 336 27 726 Missed 596 | . 27 9 . . 2 . 24 22 . . 55 39 12 5 . 11 38 101 13 238 Hits 1274 | . 53 38 . . 6 2 42 34 . . 88 95 25 19 . 37 98 235 14 488 Melee 5 | . . . . . . . . . . . 5 . . . . . . . . . Projectile 1269 | . 53 38 . . 6 2 42 34 . . 83 95 25 19 . 37 98 235 14 488 Critical Strikes 58 | . . 1 . . 1 . . 1 . . 2 3 2 2 . 7 5 10 . 24 Part Disruptions 4 | . . . . . . . . . . . . . . . . . . . . 4 Damage Taken 23351 | . 688 401 . . 48 31 585 405 . . 1619 1123 341 415 976 869 1656 3742 276 10176 Core 3155 | . 194 98 . . . . . . . . 349 203 19 29 54 125 322 304 . 1458 Absorbed by Shields 1416 | . . . . . . . . . . . . . 156 23 . 101 265 340 . 531 Redirected to Shielding 162 | . . . . . . . . . . . . . . . . . . . . 162 Ignored by Resistances 816 | . . . . . . . . . . . . 18 . . . . . . . 798 Regen/Repaired (Parts) 599 | . . . . . . . . . . . . . . . . . 482 . 117 . Core Remaining (%) 70 | 100 22 . . . 75 100 . . . . 50 . . . . 49 67 73 100 . Volleys Fired 542 | 5 52 29 . . 3 8 26 16 . . 20 53 11 13 . 10 77 109 17 93 Largest 5 | 2 2 2 . . 2 3 4 4 . . 3 4 4 4 . 4 5 5 4 5 Hottest 392 | 40 130 130 . . 130 213 308 291 . . 194 274 309 309 . 275 245 392 264 353 Shots Fired 1386 | 10 105 53 . . 6 22 98 46 . . 39 162 41 43 . 31 213 256 33 228 Gun 1008 | 10 105 51 . . 6 7 14 14 . . 29 156 40 43 . 31 213 195 5 89 Cannon 359 | . . . . . . 15 84 30 . . 6 6 . . . . . 60 24 134 Launcher 19 | . . 2 . . . . . 2 . . 4 . 1 . . . . 1 4 5 Special . | . . . . . . . . . . . . . . . . . . . . . Kinetic 442 | 10 97 . . . . . . . . . 1 13 2 9 . 8 85 140 2 75 Thermal 879 | . 8 51 . . 6 22 98 44 . . 34 141 32 34 . 23 117 108 18 143 Explosive 5 | . . . . . . . . . . . . . 1 . . . . . . 4 Electromagnetic 60 | . . 2 . . . . . 2 . . 4 8 6 . . . 11 8 13 6 Robot Hit Streak 25 | 7 8 11 . . 2 16 9 5 . . 20 17 13 8 . 8 18 17 8 25 Robot Miss Streak 9 | 1 4 5 . . 5 3 3 4 . . 2 5 3 9 . 6 5 6 3 3 Penetration Max 1 | . . . . . . . . . . . . . . . . . 1 1 . 1 Secondary Targets 17 | . 1 1 . . 1 . . . . . 1 1 1 . . 1 5 4 . 1 Max Gunslinging Chain 1 | . 1 1 . . 1 . . . . . 1 1 1 . . 1 1 1 . 1 Shots Hit Robots 865 | 8 66 43 . 9 4 15 56 22 . . 31 112 27 26 . 18 134 132 20 142 Core Hits 449 | 2 30 30 . . 5 12 32 14 . . 17 44 22 11 . 16 67 56 14 77 Critical Kills 14 | . . . . . . . 2 . . . . . . 2 . 1 5 3 . 1 Critical Parts Destroyed 15 | . 1 . . . . . . . . . . . . . . . 5 8 . 1 Critical Strikes 60 | . 1 . . . . . 2 1 . . 2 6 4 4 . 1 12 14 2 11 Burn 26 | . . . . . . . . 1 . . 2 6 4 2 . . 2 2 . 7 Meltdown 3 | . . . . . . . 2 . . . . . . . . . . . . 1 Destroy 26 | . 1 . . . . . . . . . . . . 2 . 1 10 11 . 1 Blast 4 | . . . . . . . . . . . . . . . . . . 1 1 2 Corrupt 1 | . . . . . . . . . . . . . . . . . . . 1 . Melee Attacks 18 | . . 6 . 9 . . . . . . 1 . . . . . . . 2 . Impact . | . . . . . . . . . . . . . . . . . . . . . Slashing 1 | . . . . . . . . . . . 1 . . . . . . . . . Piercing . | . . . . . . . . . . . . . . . . . . . . . Sneak Attacks 14 | . . 3 . 9 . . . . . . . . . . . . . . 2 . Combat Hostiles . | . . . . . . . . . . . . . . . . . . . . . Follow-up Attacks . | . . . . . . . . . . . . . . . . . . . . . Damage Inflicted 24409 | 75 744 607 . . 35 306 1302 529 . . 808 2123 678 588 . 471 4144 3721 726 7552 Guns 14822 | 75 744 607 . . 35 120 203 170 . . 444 1981 664 588 . 443 4035 2717 47 1949 Cannons 6744 | . . . . . . 186 1099 222 . . 102 118 . . . . . 895 432 3690 Explosions 2649 | . . . . . . . . 137 . . 262 . 14 . . . 69 87 244 1836 Melee . | . . . . . . . . . . . . . . . . . . . . . Ramming 194 | . . . . . . . . . . . . 24 . . . 28 40 22 3 77 Kinetic 6768 | 75 672 . . . . . . . . . . 90 . 130 . 62 1653 1919 85 2082 Thermal 14302 | . 72 607 . . 35 306 1302 433 . . 546 1921 605 458 . 381 2210 1611 299 3516 Explosive 1864 | . . . . . . . . . . . . . 14 . . . 69 . . 1781 Electromagnetic 1281 | . . . . . . . . 96 . . 262 88 59 . . . 172 169 339 96 Impact . | . . . . . . . . . . . . . . . . . . . . . Slashing . | . . . . . . . . . . . . . . . . . . . . . Piercing . | . . . . . . . . . . . . . . . . . . . . . Highest Corruption 40 | . 1 . . . . . . . . . 1 . 3 . . 11 4 3 . 40 Average Corruption 4 | . 1 . . . . . . . . . 1 . 2 . . 3 2 1 . 10 Corruption Purged 3 | . . . . . . . . . . . . . 3 . . . . . . . Corruption Blocked . | . . . . . . . . . . . . . . . . . . . . . Effects 121 | . 9 . . . . . . . . . 2 . 16 . . . 24 9 . 61 Message Errors 25 | . 1 . . . . . . . . . 1 . 5 . . . 7 4 . 7 Matter Fused 23 | . 1 . . . . . . . . . . . 5 . . . 5 1 . 11 Heat Flow Errors 16 | . 2 . . . . . . . . . 1 . 2 . . . 4 . . 7 Energy Discharges 18 | . 2 . . . . . . . . . . . 3 . . . 3 1 . 9 Parts Rejected 3 | . 1 . . . . . . . . . . . . . . . . 1 . 1 Data Loss (minor) 10 | . 1 . . . . . . . . . . . . . . . 3 2 . 4 Data Loss (major) 5 | . . . . . . . . . . . . . 1 . . . 2 . . 2 Misfires 3 | . 1 . . . . . . . . . . . . . . . . . . 2 Alerts 3 | . . . . . . . . . . . . . . . . . . . . 3 Misdirections 13 | . . . . . . . . . . . . . . . . . . . . 13 Weapon Failures 2 | . . . . . . . . . . . . . . . . . . . . 2 Overload Shots 2 | . . . . . . . . . . . . 1 . . . . . . 1 . Overflow Damage 425 | . 113 . . . . . . . . . . . . . . . . 16 8 288 Projectiles 302 | . . . . . . . . . . . . . . . . . . 14 8 280 Explosions 123 | . 113 . . . . . . . . . . . . . . . . 2 . 8 Melee . | . . . . . . . . . . . . . . . . . . . . . Knockbacks 17 | . . . . . . . . . . . . . . . . . . 3 . 14 Impact 2 | . . . . . . . . . . . . . . . . . . . . 2 Kinetic 14 | . . . . . . . . . . . . . . . . . . 3 . 11 Secondary 1 | . . . . . . . . . . . . . . . . . . . . 1 Self-Inflicted Damage 322 | . 209 16 . . . . . . . . 10 . . . . . . 4 . 83 Shots 8 | . 2 1 . . . . . . . . 1 . . . . . . 1 . 3 Rammed 5 | . . . . . . . . . . . . . . . . 3 . . . 2 Targets Rammed 19 | . . . . . . . . . . . . 1 . . . 3 3 3 1 8 Kicked 14 | . . . . . . . . . . . . 1 . . . . 3 3 1 6 Crushed . | . . . . . . . . . . . . . . . . . . . . . Highest Temperature 532 | . 206 424 . . 189 389 380 436 . . 158 474 265 364 . 480 322 495 280 532 Average Temperature 147 | . 69 146 . . 99 136 140 151 . . 48 156 88 120 . 184 105 177 99 223 Received Heat Transfer 2039 | . 27 93 . . . 9 96 9 . . 417 147 53 9 . . 265 216 9 689 Effects 47 | . . 1 . . . . 3 6 . . . 7 . 1 . 4 1 21 . 3 Shutdowns 14 | . . 1 . . . . 1 1 . . . 3 . . . 1 1 6 . . Energy Bleed 7 | . . . . . . . . 2 . . . 1 . 1 . . . 2 . 1 Interference 17 | . . . . . . . 2 3 . . . 1 . . . 3 . 7 . 1 Matter Decay 1 | . . . . . . . . . . . . . . . . . . 1 . . Short Circuit 3 | . . . . . . . . . . . . 1 . . . . . 2 . . Damage (minor) 2 | . . . . . . . . . . . . 1 . . . . . . . 1 Damage (major) 3 | . . . . . . . . . . . . . . . . . . 3 . . Siege Activations . | . . . . . . . . . . . . . . . . . . . . . Martial Activations . | . . . . . . . . . . . . . . . . . . . . . Shielding Activations . | . . . . . . . . . . . . . . . . . . . . . Robots Disrupted 1 | . . . . . . . . . . . . . . . . . 1 . . . Combat Hostiles . | . . . . . . . . . . . . . . . . . . . . . Robots Corrupted 1 | . . . . . . . . . . . . . . . . . . . 1 . Combat Hostiles 1 | . . . . . . . . . . . . . . . . . . . 1 . Parts Fried 3 | . . . . . . . . . . . 1 . . . . . . . 2 . Impact Corruptions . | . . . . . . . . . . . . . . . . . . . . . Robots Melted 9 | . . . . . . . 2 . . . 2 3 . . . . . 1 . 1 Combat Hostiles 8 | . . . . . . . 2 . . . 2 2 . . . . . 1 . 1 Parts Melted 78 | . . . . . . 2 5 2 . . 5 20 . 3 . 1 13 5 3 19 Heat Transferred 25904 | . 141 1105 . . 62 498 2297 916 . . 1295 4554 1591 1169 . 785 3717 2893 359 4522 Parts Sabotaged 3 | . . . . . . . . . . . 3 . . . . . . . . . Parts Stolen . | . . . . . . . . . . . . . . . . . . . . . Parts Stripped . | . . . . . . . . . . . . . . . . . . . . . Power Chain Reactions 2 | . . . . . . . . 1 . . . . . . . . . . 1 . Alert | -11 -10 -9 -9 -9 -8 -8 -7 -7 -7 -7 -6 -6 -6 -6 -6 -6 -5 -4 -3 -2 ------- Run | Yrd Mat Mat Min Exi Min Mat Fac Low Low Dat Pro Fac Ext Cet Arc Hub Fac Fac Res Res Maximum Alert Level 3 | . . . . . . . . . . . . 1 2 2 1 . 1 1 . 3 Low Security (%) 83 | 100 100 100 100 . 100 100 100 . . . . 64 83 5 . 100 92 94 100 65 Level 1 10 | . . . . . . . . . . . . 35 . 61 100 . 7 5 . 8 Level 2 3 | . . . . . . . . . . . . . 15 33 . . . . . 8 Level 3 1 | . . . . . . . . . . . . . . . . . . . . 17 Level 4 . | . . . . . . . . . . . . . . . . . . . . . Level 5 . | . . . . . . . . . . . . . . . . . . . . . High Security . | . . . . . . . . . . . . . . . . . . . . . Max Security . | . . . . . . . . . . . . . . . . . . . . . Peak Influence 889 | 5 132 90 . . 50 30 151 . . . . 246 654 560 336 137 358 212 92 889 Initial 317 | . . 21 . . . . . . . . . 38 115 317 221 93 . 59 92 . Average 101 | . 66 22 . . 6 2 52 . . . . 90 178 338 267 56 112 89 8 243 Influence Increases 8284 | 5 482 275 . . 50 72 461 295 . . 310 547 1307 837 175 184 762 764 117 1641 Destroy 0b10 Robot/C 4200 | . 280 200 . . 40 20 260 220 . . 140 320 520 360 80 120 440 500 60 640 Destroy 0b10 Robot/NC 245 | 5 20 5 . . . 15 15 . . . . 25 35 10 . . 60 10 5 40 Destroy Leader 740 | . 62 32 . . 10 14 52 30 . . 20 94 56 30 . 30 80 100 10 120 Allied During Kill 1041 | . . . . . . . . . . . . . 556 400 78 . . . . 7 Trap Triggered on 0b10 10 | . . 10 . . . . . . . . . . . . . . . . . . Successful Hack 214 | . 25 13 . . . 5 70 . . . . 43 12 16 . . 14 10 . 6 Disable Machine 330 | . 30 15 . . . 15 15 . . . . . 45 . 15 30 90 30 15 30 Destroy Structure 574 | . 35 . . . . 3 4 . . . . 5 38 21 2 4 78 84 12 288 Lose Combat Pursuer 930 | . 30 . . . . . 45 45 . . 150 60 45 . . . . 30 15 510 Influence Decreases 7503 | 5 430 327 . . 50 72 366 332 58 . 248 372 976 851 463 450 640 709 294 860 Entered New Map 1130 | . . 31 . . . . . 36 12 . . 24 122 251 333 173 . 63 85 . Time Decay 4789 | 5 400 296 . . 50 72 356 286 46 . 158 308 595 440 90 232 410 466 209 370 Lost Part 765 | . 30 . . . . . 10 10 . . 90 40 . . 20 35 80 180 . 270 Lost Ally 369 | . . . . . . . . . . . . . 109 160 20 10 . . . 70 Purge Threat 450 | . . . . . . . . . . . . . 150 . . . 150 . . 150 Squads Dispatched 53 | . 2 . . . . . 5 . . . 1 7 1 . . 4 8 6 6 13 Investigation 7 | . 2 . . . . . . . . . . . . . . 1 . 1 3 . Extermination 21 | . . . . . . . 4 . . . . 4 . . . . 4 3 . 6 Reinforcement 15 | . . . . . . . 1 . . . . . 1 . . . 3 2 3 5 Assault 3 | . . . . . . . . . . . 1 . . . . . . . . 2 Garrison 7 | . . . . . . . . . . . . 3 . . . 3 1 . . . Intercept . | . . . . . . . . . . . . . . . . . . . . . Searches Triggered . | . . . . . . . . . . . . . . . . . . . . . Data Miner Redirects 3 | . . . . . . . . . . . . . . . . . . 1 . 2 Construction Impeded 3 | . . . . . . . . . . . . . . . . . 1 1 . 1 Haulers Reinforced 3 | . . . . . . . . . . . . . . . . . 1 1 1 . Active Scanning Responses . | . . . . . . . . . . . . . . . . . . . . . Cargo Convoy Interrupts 1 | . . . . . . . . . . . . . . . . . . . . 1 Stealth | -11 -10 -9 -9 -9 -8 -8 -7 -7 -7 -7 -6 -6 -6 -6 -6 -6 -5 -4 -3 -2 --------- Run | Yrd Mat Mat Min Exi Min Mat Fac Low Low Dat Pro Fac Ext Cet Arc Hub Fac Fac Res Res Distress Signals 22 | . 1 2 . . . . 1 . . . . 1 2 2 . . 5 1 3 4 Communications Jammed . | . . . . . . . . . . . . . . . . . . . . . Distress Signals . | . . . . . . . . . . . . . . . . . . . . . Times Spotted 368 | . 24 18 . . 3 4 18 13 . . 25 26 28 16 6 11 38 35 11 92 Peak Tracking Total 14 | . 6 4 . . 3 1 5 3 . . 14 6 5 5 7 3 6 5 3 12 Tactical Retreats 36 | . 2 . . . . . 3 3 . . 6 2 3 . . . . 2 1 14 Traps | -11 -10 -9 -9 -9 -8 -8 -7 -7 -7 -7 -6 -6 -6 -6 -6 -6 -5 -4 -3 -2 ------- Run | Yrd Mat Mat Min Exi Min Mat Fac Low Low Dat Pro Fac Ext Cet Arc Hub Fac Fac Res Res Traps Triggered 13 | . 2 . . . . . 1 . . . . . 1 . . . 1 1 2 5 Indirectly 1 | . . . . . . . . . . . . . . . . . . . 1 . Trap Hack Attempts 17 | . . 15 . . . . . . . . . . . . . . . . 2 . Triggered . | . . . . . . . . . . . . . . . . . . . . . Disarmed . | . . . . . . . . . . . . . . . . . . . . . Reprogrammed 1 | . . 1 . . . . . . . . . . . . . . . . . . Reused 1 | . . 1 . . . . . . . . . . . . . . . . . . Traps Extracted . | . . . . . . . . . . . . . . . . . . . . . Installed . | . . . . . . . . . . . . . . . . . . . . . Triggered 1 | . . 1 . . . . . . . . . . . . . . . . . . Machines | -11 -10 -9 -9 -9 -8 -8 -7 -7 -7 -7 -6 -6 -6 -6 -6 -6 -5 -4 -3 -2 ---------- Run | Yrd Mat Mat Min Exi Min Mat Fac Low Low Dat Pro Fac Ext Cet Arc Hub Fac Fac Res Res Machines Disabled 22 | . 2 1 . . . 1 1 . . . . . 3 . 1 2 6 2 1 2 Max in Single Turn 2 | . 2 1 . . . 1 1 . . . . . . . . 1 1 1 1 1 Garrison Access 6 | . . . . . . 1 . . . . . . . . . 1 1 2 . 1 Network Hub 1 | . . . . . . . . . . . . . . . . 1 . . . . Machines Repaired . | . . . . . . . . . . . . . . . . . . . . . Machines Dismantled 1 | . . . . . . . . . . . . . . . . 1 . . . . Machines Sabotaged . | . . . . . . . . . . . . . . . . . . . . . Overloaded Fab Kills . | . . . . . . . . . . . . . . . . . . . . . Hacking | -11 -10 -9 -9 -9 -8 -8 -7 -7 -7 -7 -6 -6 -6 -6 -6 -6 -5 -4 -3 -2 --------- Run | Yrd Mat Mat Min Exi Min Mat Fac Low Low Dat Pro Fac Ext Cet Arc Hub Fac Fac Res Res Machines Accessed 82 | . 8 4 . 3 . 7 9 . 1 4 . 8 7 3 1 2 11 6 3 5 Terminals 48 | . 6 2 . . . 5 7 . . . . 5 6 3 . 1 8 3 1 1 Fabricators 5 | . . . . . . . 1 . . . . 1 . . . . . . 1 2 Repair Stations 3 | . . . . . . . . . . . . . . . . . 1 . 1 1 Recycling Units 9 | . 2 1 . . . 1 1 . . . . 1 1 . . . 1 1 . . Scanalyzers 2 | . . 1 . . . . . . . . . 1 . . . . . . . . Garrison Access 6 | . . . . . . 1 . . . . . . . . . 1 1 2 . 1 Total Hacks 268 | . 19 22 . 3 . 15 26 . 1 27 . 24 15 9 25 3 38 17 9 15 Successful 142 | . 8 12 . 3 . 6 9 . 1 27 . 12 8 5 25 1 11 6 5 3 Failed 126 | . 11 10 . . . 9 17 . . . . 12 7 4 . 2 27 11 4 12 Catastrophic 29 | . 2 1 . . . 1 3 . . . . 1 3 . . . 11 3 . 4 Database Lockouts . | . . . . . . . . . . . . . . . . . . . . . Manual 111 | . 16 11 . 1 . 12 18 . . . . 16 4 2 . 2 14 3 5 7 Terminals 144 | . 14 10 . . . 12 22 . . . . 18 13 9 . 2 30 8 2 4 Fabricators 13 | . . . . . . . 2 . . . . 2 . . . . . . 3 6 Repair Stations 7 | . . . . . . . . . . . . . . . . . 2 . 4 1 Recycling Units 27 | . 5 3 . . . 2 2 . . . . 2 2 . . . 4 7 . . Scanalyzers 11 | . . 9 . . . . . . . . . 2 . . . . . . . . Garrison Access 10 | . . . . . . 1 . . . . . . . . . 1 2 2 . 4 Terminal Hacks 87 | . 2 1 . 3 . . 4 . 1 27 . 5 6 5 25 . 5 2 . 1 Record 42 | . . . . 2 . . . . . 11 . . . 4 25 . . . . . Part Schematic 9 | . . . . . . . . . . 9 . . . . . . . . . . Robot Schematic 4 | . . . . . . . . . . 4 . . . . . . . . . . Robot Analysis 1 | . . . . . . . . . . . . 1 . . . . . . . . Prototype ID Bank 3 | . . . . . . . . . . 3 . . . . . . . . . . Open Door 3 | . . . . . . . . . 1 . . . 1 1 . . . . . . Level Access Points 2 | . . . . . . . 1 . . . . . . . . . . 1 . . Branch Access Points 6 | . 1 . . . . . 1 . . . . 1 1 . . . 1 1 . . Terminal Index 3 | . . 1 . . . . 1 . . . . . . . . . 1 . . . Alert Level 5 | . . . . . . . 1 . . . . 1 1 . . . 2 . . . Unreport Threat 3 | . . . . . . . . . . . . . 1 . . . 1 . . 1 Locate Traps 3 | . 1 . . . . . . . . . . 1 1 . . . . . . . Recall Extermination 1 | . . . . . . . . . . . . 1 . . . . . . . . Zone Layout 1 | . . . . . . . . . . . . . 1 . . . . . . . Proto ID Catalog 1 | . . . . 1 . . . . . . . . . . . . . . . . Fabricator Hacks . | . . . . . . . . . . . . . . . . . . . . . Repair Station Hacks 5 | . . . . . . . . . . . . . . . . . 2 . 3 . Scan Component 3 | . . . . . . . . . . . . . . . . . 1 . 2 . Repair 2 | . . . . . . . . . . . . . . . . . 1 . 1 . Recycling Unit Hacks 9 | . 2 1 . . . 1 1 . . . . 1 1 . . . 1 1 . . Report Inventory 9 | . 2 1 . . . 1 1 . . . . 1 1 . . . 1 1 . . Scanalyzer 9 | . . 8 . . . . . . . . . 1 . . . . . . . . Insert Component 3 | . . 2 . . . . . . . . . 1 . . . . . . . . Analyze 6 | . . 6 . . . . . . . . . . . . . . . . . . Garrison Access Hacks 6 | . . . . . . 1 . . . . . . . . . 1 1 2 . 1 Seal Access 6 | . . . . . . 1 . . . . . . . . . 1 1 2 . 1 Unauthorized Hacks 26 | . 4 2 . . . 4 4 . . . . 5 1 . . . 2 1 2 1 Terminals 17 | . 3 1 . . . 3 3 . . . . 5 . . . . 1 . 1 . Assimilate 2 | . . . . . . . . . . . . 2 . . . . . . . . Botnet 12 | . 2 1 . . . 2 3 . . . . 2 . . . . 1 . 1 . Operators 3 | . 1 . . . . 1 . . . . . 1 . . . . . . . . Fabricators 2 | . . . . . . . . . . . . . . . . . . . 1 1 Fabnet 2 | . . . . . . . . . . . . . . . . . . . 1 1 Repair Stations . | . . . . . . . . . . . . . . . . . . . . . Recycling Units 7 | . 1 1 . . . 1 1 . . . . . 1 . . . 1 1 . . Recyclers 7 | . 1 1 . . . 1 1 . . . . . 1 . . . 1 1 . . Scanalyzers . | . . . . . . . . . . . . . . . . . . . . . Garrison Access . | . . . . . . . . . . . . . . . . . . . . . Data Cores Recovered 2 | . 1 . . . . . . . . . . . . . . . . . 1 . Used . | . . . . . . . . . . . . . . . . . . . . . Hacking Detections 56 | . 6 4 . . . 5 9 . . . . 8 4 2 . 1 9 3 1 4 Full Trace Events 1 | . 1 . . . . . . . . . . . . . . . . . . . Feedback Events 1 | . 1 . . . . . . . . . . . . . . . . . . . Corruption 1 | . 1 . . . . . . . . . . . . . . . . . . . Feedback Blocked . | . . . . . . . . . . . . . . . . . . . . . Robot Schematics Acquired 4 | . . . . . . . . . . 4 . . . . . . . . . . Robots Built . | . . . . . . . . . . . . . . . . . . . . . Authchips . | . . . . . . . . . . . . . . . . . . . . . Time . | . . . . . . . . . . . . . . . . . . . . . Total Robot Build Rating . | . . . . . . . . . . . . . . . . . . . . . Part Schematics Acquired 11 | . . 2 . . . . . . . 9 . . . . . . . . . . Parts Built . | . . . . . . . . . . . . . . . . . . . . . Authchips . | . . . . . . . . . . . . . . . . . . . . . Time . | . . . . . . . . . . . . . . . . . . . . . Total Part Build Rating . | . . . . . . . . . . . . . . . . . . . . . Parts Repaired 2 | . . . . . . . . . . . . . . . . . 1 . 1 . Time 186 | . . . . . . . . . . . . . . . . . 108 . 78 . Parts Recycled . | . . . . . . . . . . . . . . . . . . . . . Recycled Matter . | . . . . . . . . . . . . . . . . . . . . . Retrieved Matter . | . . . . . . . . . . . . . . . . . . . . . Retrieved Components . | . . . . . . . . . . . . . . . . . . . . . Parts Scanalyzed 3 | . . 2 . . . . . . . . . 1 . . . . . . . . Part Schematics Acquired 2 | . . 2 . . . . . . . . . . . . . . . . . . Parts Damaged . | . . . . . . . . . . . . . . . . . . . . . Bothacking | -11 -10 -9 -9 -9 -8 -8 -7 -7 -7 -7 -6 -6 -6 -6 -6 -6 -5 -4 -3 -2 ------------ Run | Yrd Mat Mat Min Exi Min Mat Fac Low Low Dat Pro Fac Ext Cet Arc Hub Fac Fac Res Res Used RIF Installer . | . . . . . . . . . . . . . . . . . . . . . Robots Hacked 17 | . . 4 . 7 . . . . . . . . . . . . . . 2 4 Non-combat 7 | . . 4 . 3 . . . . . . . . . . . . . . . . Combat 10 | . . . . 4 . . . . . . . . . . . . . . 2 4 Robot Hacks Applied 13 | . . 4 . 7 . . . . . . . . . . . . . . 2 . parse_system 10 | . . 1 . 7 . . . . . . . . . . . . . . 2 . no_distress 1 | . . 1 . . . . . . . . . . . . . . . . . . find_recycling 2 | . . 2 . . . . . . . . . . . . . . . . . . Relay Couplers Released 4 | . . . . . . . . . . . . 4 . . . . . . . . Programmers 4 | . . . . . . . . . . . . 4 . . . . . . . . Fabnet Peak Effective % 3 | . . . . . . . . . . . . . . . . . . . . 3 Autooverrided 4 | . . . . . . . . . . . . . . . . . . . . 4 Robots Rewired 15 | . . . . . . . . . . . . . 15 . . . . . . . Allies Hacked 1 | . . . . . . . . . . . . . . . . . . . . 1 Hacks Repelled . | . . . . . . . . . . . . . . . . . . . . . Allies | -11 -10 -9 -9 -9 -8 -8 -7 -7 -7 -7 -6 -6 -6 -6 -6 -6 -5 -4 -3 -2 -------- Run | Yrd Mat Mat Min Exi Min Mat Fac Low Low Dat Pro Fac Ext Cet Arc Hub Fac Fac Res Res Total Allies 33 | . . . . . . . . . . . . 1 22 5 . . . . . 5 Largest Group 17 | . . . . . . . . . . . . 1 17 16 7 . . . . 1 Highest-Rated Group 931 | . . . . . . . . . . . . 26 610 931 565 . . . . 113 Highest-Rated Ally 159 | . . . . . . . . . . . . 26 159 128 122 . . . . 113 Total Orders 14 | . . . . . . . . . . . . . 8 3 . 3 . . . . STAY 5 | . . . . . . . . . . . . . 4 1 . . . . . . FOLLOW 6 | . . . . . . . . . . . . . 4 2 . . . . . . EXPLORE 2 | . . . . . . . . . . . . . . . . 2 . . . . RETURN 1 | . . . . . . . . . . . . . . . . 1 . . . . Ally Attacks 308 | . . . . . . . . . . . . . 183 93 18 . . . . 14 Total Damage 7300 | . . . . . . . . . . . . . 3660 2831 470 . . . . 339 Kills 53 | . . . . . . . . . . . . . 28 21 4 . . . . . Allies Corrupted . | . . . . . . . . . . . . . . . . . . . . . Allies Melted . | . . . . . . . . . . . . . . . . . . . . . Intel | -11 -10 -9 -9 -9 -8 -8 -7 -7 -7 -7 -6 -6 -6 -6 -6 -6 -5 -4 -3 -2 ------- Run | Yrd Mat Mat Min Exi Min Mat Fac Low Low Dat Pro Fac Ext Cet Arc Hub Fac Fac Res Res Active Infowar (turns) 17335 | 1306 1136 1244 79 828 430 785 1712 615 481 547 427 1363 . . . 419 2211 1154 1681 917 Terrain 5765 | . . . . . . . . . . . . . . . . . 2210 957 1681 917 Structural 9538 | . . 1236 79 828 430 785 1712 615 481 547 427 1299 . . . 419 680 . . . Seismic 5543 | 1306 1136 1197 79 828 430 567 . . . . . . . . . . . . . . Decoding 861 | . . . . . . . . . . . . 861 . . . . . . . . Jamming 295 | . . . . . . . . . . . . . . . . . . 295 . . Robot Analysis Total 1 | . . . . . . . . . . . . 1 . . . . . . . . Derelict Logs Recovered 3 | . . . 1 . . . . . 1 . 1 . . . . . . . . . Drone Launches 3 | . . . . . . . . . . . . . . . . 3 . . . . Drone Recoveries 2 | . . . . . . . . . . . . . . . . 2 . . . . Decoded 0b10 Intel 34 | . . . . . . . . . . . . 34 . . . . . . . . Items 34 | . . . . . . . . . . . . 34 . . . . . . . . Exploration | -11 -10 -9 -9 -9 -8 -8 -7 -7 -7 -7 -6 -6 -6 -6 -6 -6 -5 -4 -3 -2 ------------- Run | Yrd Mat Mat Min Exi Min Mat Fac Low Low Dat Pro Fac Ext Cet Arc Hub Fac Fac Res Res Turns Passed 24045 | 1368 1210 1244 79 828 430 785 1899 628 481 547 513 2518 1937 1094 185 550 2211 1895 1681 1962 Spaces Moved 12741 | 277 683 546 50 554 363 413 1067 515 459 126 437 1379 898 612 114 253 944 790 1207 1054 Core 30 | 8 . . . . . . . . . . . . . . . . . . . 22 Treads 2865 | . . 546 50 438 . . . . . . . . 716 612 114 253 134 . . 2 Legs 9392 | 269 683 . . 116 363 413 1067 515 459 126 437 1235 . . . . 682 790 1207 1030 Wheels 345 | . . . . . . . . . . . . 144 182 . . . 19 . . . Hover 109 | . . . . . . . . . . . . . . . . . 109 . . . Flight . | . . . . . . . . . . . . . . . . . . . . . Fastest Speed 45 | 50 120 160 160 90 90 100 103 103 103 103 45 110 160 162 160 160 120 120 114 50 Average Speed 134 | 117 138 160 160 145 97 100 129 103 103 103 96 134 164 162 161 167 156 129 124 134 Slowest Speed 400 | 120 260 160 160 170 100 103 179 103 103 103 170 192 400 163 163 240 270 185 184 250 Overloaded Moves 80 | . . . . . . . . . . . 71 9 . . . . . . . . Propulsion Burnouts . | . . . . . . . . . . . . . . . . . . . . . Robots Hopped . | . . . . . . . . . . . . . . . . . . . . . Potential Cave-ins 2 | . . . . . . . . . . . . . . . . . . 2 . . Cave-ins Triggered . | . . . . . . . . . . . . . . . . . . . . . Exploration Rate (%) 53 | 40 86 38 12 80 87 40 36 58 69 75 65 21 81 95 94 30 29 19 35 41 Regions Visited 20 Branch Regions 11 Pre-discovered Areas 3 | . . . 1 1 . . . . . 1 . . . . . . . . . . Known Exits Taken 8 | . . . . . . . 1 . . . 1 1 1 1 1 1 . 1 . . Unknown Exits Taken 12 | 1 1 1 1 1 1 1 . 1 1 1 . . . . . . 1 . 1 . Scrap Searched 6 | . . . . . 1 . . 2 2 . 1 . . . . . . . . . Spaces Dug 67 | . . . . . . . . . . . . 1 15 . . . 14 15 5 17 Terrain Destroyed 273 | . 35 . . . . 3 . 1 . . . 1 15 5 . 7 43 45 6 112 Melee . | . . . . . . . . . . . . . . . . . . . . . Projectile 154 | . . . . . . 3 . . . . . 1 . 5 . 7 40 45 6 47 AOE 118 | . 35 . . . . . . 1 . . . . 15 . . . 2 . . 65 Terrain Rammed . | . . . . . . . . . . . . . . . . . . . . . Walls Destroyed . | . . . . . . . . . . . . . . . . . . . . . Machines Disabled . | . . . . . . . . . . . . . . . . . . . . . Actions | -11 -10 -9 -9 -9 -8 -8 -7 -7 -7 -7 -6 -6 -6 -6 -6 -6 -5 -4 -3 -2 --------- Run | Yrd Mat Mat Min Exi Min Mat Fac Low Low Dat Pro Fac Ext Cet Arc Hub Fac Fac Res Res Total 18678 | 1305 856 863 49 570 434 776 1528 580 469 543 493 1940 1331 684 115 346 1523 1481 1368 1424 Wait 4559 | 1010 85 209 . . 66 316 412 45 . 418 27 449 270 41 . 60 450 470 55 176 Move 12721 | 276 682 545 49 553 362 412 1066 514 458 125 436 1378 897 611 113 252 943 789 1206 1054 Hop . | . . . . . . . . . . . . . . . . . . . . . Pick Up 165 | 7 10 22 . . 1 15 7 2 3 . 2 17 9 5 . 3 12 17 20 13 Fast Attach 79 | 7 4 . . 2 . 3 1 . 1 . 1 8 9 4 . 1 10 10 9 9 Attach 88 | . 2 4 . . . 2 3 . 1 . 2 14 3 . . 3 10 25 5 14 Detach 35 | . . . . . . 1 . . . . 1 4 2 1 . 1 1 16 3 5 Swap 148 | . 10 17 . 2 1 2 6 1 2 . 2 8 16 . . 7 10 23 19 22 Drop 177 | . 11 16 . 2 1 17 7 2 4 . 1 8 22 9 . 3 7 19 29 19 Fire 542 | 5 52 29 . . 3 8 26 16 . . 20 53 11 13 . 10 77 109 17 93 Melee 18 | . . 6 . 9 . . . . . . 1 . . . . . . . 2 . Ram 3 | . . . . . . . . . . . . . . . . . . . . 3 Kick 14 | . . . . . . . . . . . . 1 . . . . 3 3 1 6 Crush 3 | . . . . . . . . . . . . . . . . 3 . . . . Escape Stasis 26 | . . . . . . . . . . . . . 16 . . . . . . 10 Rewire 80 | . . . . 2 . . . . . . . . 76 . 2 . . . . . Trap 17 | . . 15 . . . . . . . . . . . . . . . . 2 . Miscellaneous 3 | . . . . . . . . . . . . . . . . 3 . . . . Route ------- -11/Scrapyard -10/Materials (discovered 6 exits: *Mat x3 / *Min x2 / [*Sub]) -9/Materials (discovered 2 exits: [*Min] / [*Sto]) -9/Mines (discovered 2 exits: *Mat / *Exi) -9/Exiles -8/Mines (discovered 2 exits: *Mat x2) -8/Materials -7/Factory (discovered 6 exits: Fac x4 / *Low x2) -7/Lower Caves -7/Lower Caves -7/Data Miner -6/Proximity Caves -6/Factory (discovered 4 exits: Low x2 / *Ext x2) -6/Extension (discovered 3 exits: *Fac x2 / *Cet) -6/Cetus (discovered 3 exits: *Fac x2 / *Arc) -6/Archives (discovered 3 exits: *Fac / *Hub x2) -6/Hub_04(d) (discovered 2 exits: *Fac x2) -5/Factory (discovered 4 exits: *Fac x2 / Upp x2) -4/Factory (discovered 7 exits: *Res x4 / Upp x2 / Arm) -3/Research (discovered 2 exits: *Res / [Qua]) -2/Research History --------- Turn | Location | Event 3 | -11/Scrapyard | Discovered new exit (range 15) 1369 | -11/Scrapyard | Entered Materials 1370 | -10/Materials | Build established: Mutant 1592 | -10/Materials | Discovered new exit (range 15) 1650 | -10/Materials | Discovered new exit (range 5) 1681 | -10/Materials | Discovered new exit (range 6) 1756 | -10/Materials | Discovered new exit (range 7) 2059 | -10/Materials | Discovered new exit (range 16) 2262 | -10/Materials | Discovered new exit (range 3) 2293 | -10/Materials | Core integrity fell below 50% 2350 | -10/Materials | Identified exit to Mines 2579 | -10/Materials | Entered another Materials area 2579 | -9/Materials | Evolved 2 slots: Propulsion x1, Utility x1 3769 | -9/Materials | Discovered new exit (range 12) 3804 | -9/Materials | Discovered new exit (range 16) 3823 | -9/Materials | Entered Mines 3824 | -9/Mines | Learned location of Storage (-9) 3852 | -9/Mines | Discovered new exit (range 6) 3871 | -9/Mines | Learned 2 Materials zone layouts 3894 | -9/Mines | Deemed a non-threat by the Exiles lab entrance 3894 | -9/Mines | Discovered new exit (range 6) 3902 | -9/Mines | Entered Exiles 3941 | -9/Exiles | Met 8R-AWN 3974 | -9/Exiles | Met EX-HEX 4099 | -9/Exiles | Met EX-DEC 4147 | -9/Exiles | Learned location of Zion (-6) 4222 | -9/Exiles | Visited The Gauntlet 4320 | -9/Exiles | Met EX-BIN 4449 | -9/Exiles | Aligned with FarCom system 4451 | -9/Exiles | Given EX-Vault access code 4487 | -9/Exiles | Opened EX-Vault 4564 | -9/Exiles | Warned to stay clear of 0b10 Research branches 4621 | -9/Exiles | Found Potential Leg 4624 | -9/Exiles | Found Potential Leg 4720 | -9/Exiles | Discovered new exit (range 11) 4730 | -9/Exiles | Left Exiles lab with Potential Leg 4730 | -9/Exiles | Entered Mines 5138 | -8/Mines | Discovered new exit (range 15) 5152 | -8/Mines | Discovered new exit (range 5) 5160 | -8/Mines | Entered Materials 5160 | -8/Materials | Evolved 2 slots: Utility x1, Weapon x1 5474 | -8/Materials | Build established: Skirmisher 5627 | -8/Materials | Discovered new exit (range 15) 5945 | -8/Materials | Entered Factory 5945 | -7/Factory | Evolved 2 slots: Utility x1, Weapon x1 6373 | -7/Factory | Identified exit to Lower Caves 7158 | -7/Factory | Identified exit to Factory 7844 | -7/Factory | Entered Lower Caves 8009 | -7/Lower Caves | Spotted B-75 Beast 8205 | -7/Lower Caves | Encountered a Warlord checkpoint 8306 | -7/Lower Caves | Build established: Tank 8466 | -7/Lower Caves | Discovered new exit (range 7) 8472 | -7/Lower Caves | Entered another Lower Caves area 8572 | -7/Lower Caves | Learned Factory interactive machine intel 8901 | -7/Lower Caves | Encountered a Warlord checkpoint 8948 | -7/Lower Caves | Discovered new exit (range 5) 8953 | -7/Lower Caves | Entered Data Miner 8953 | -7/Data Miner | Discovered new exit (range 6) 8975 | -7/Data Miner | Met Data Miner 9017 | -7/Data Miner | Learned location of Section 7 (-2) 9017 | -7/Data Miner | Acquired the access code to Warlord's prototype stash 9024 | -7/Data Miner | Received God Mode back door access code from Data Miner 9500 | -7/Data Miner | Entered Proximity Caves 9880 | -6/Proximity Caves | Spotted B-75 Beast 9906 | -6/Proximity Caves | Attracted the attention of an 0b10 outpost 9943 | -6/Proximity Caves | Lost 3 parts (1p1u1w) 10002 | -6/Proximity Caves | Learned 4 Factory zone layouts 10005 | -6/Proximity Caves | Discovered exit to Factory (range 7) 10013 | -6/Proximity Caves | Entered Factory 10013 | -6/Factory | Evolved 2 slots: Power x1, Propulsion x1 10015 | -6/Factory | Loaded intel: 56 interactive machine locations 10024 | -6/Factory | Lost 5 parts (2n1u2w) 10257 | -6/Factory | Build established: Mutant 10810 | -6/Factory | Build established: Skirmisher 10897 | -6/Factory | Identified exit to Lower Caves 10897 | -6/Factory | Identified exit to Extension 11597 | -6/Factory | Build established: Hacker-Skirmisher 12264 | -6/Factory | Garrison activated, responded to threat 12531 | -6/Factory | Entered Extension 12595 | -6/Extension | Rescued a captive Derelict 12597 | -6/Extension | Rescued a captive Derelict 12608 | -6/Extension | Rescued a captive Derelict 12612 | -6/Extension | Rescued a captive Derelict 12675 | -6/Extension | Rescued A7 13412 | -6/Extension | Build established: Commander-Skirmisher 13614 | -6/Extension | Spotted B-75 Beast 13633 | -6/Extension | Spotted B-75 Beast 13640 | -6/Extension | Allies destroyed B-75 Beast 13671 | -6/Extension | Lost 4 allies 13779 | -6/Extension | Discovered new exit (range 3) 13783 | -6/Extension | Identified exit to Factory 13817 | -6/Extension | Rescued a captive Derelict 13962 | -6/Extension | Rescued a captive Derelict 14042 | -6/Extension | Identified exit to Cetus 14401 | -6/Extension | Discovered exit to Factory (range 10) 14468 | -6/Extension | Entered Cetus 14468 | -6/Cetus | Accompanied by 14 allies (A7) 14473 | -6/Cetus | Acquired a Cetus Manufacturing Module code from A7 14488 | -6/Cetus | Spotted Cetus Guard 14489 | -6/Cetus | Spotted Cetus Guard 14495 | -6/Cetus | Spotted Cetus Guard 14497 | -6/Cetus | Spotted Cetus Guard 14501 | -6/Cetus | Allies destroyed Cetus Guard 14508 | -6/Cetus | Allies destroyed Cetus Guard 14508 | -6/Cetus | Allies destroyed Cetus Guard 14512 | -6/Cetus | Allies destroyed Cetus Guard 14538 | -6/Cetus | Lost 3 allies 14559 | -6/Cetus | Discovered exit to Factory (range 15) 14726 | -6/Cetus | Started Cetus Manufacturing Module 14740 | -6/Cetus | Escorted A7 to Cetus Mainframe 14751 | -6/Cetus | Manufactured an Enhanced Grunt 14776 | -6/Cetus | Manufactured an Enhanced Grunt 14801 | -6/Cetus | Manufactured an Enhanced Grunt 14826 | -6/Cetus | Manufactured an Enhanced Grunt 14851 | -6/Cetus | Manufactured an Enhanced Grunt 14853 | -6/Cetus | Discovered new exit (range 15) 15097 | -6/Cetus | Spotted Cetus Guard 15099 | -6/Cetus | Spotted Cetus Guard 15100 | -6/Cetus | Spotted Cetus Guard 15100 | -6/Cetus | Spotted Cetus Guard 15105 | -6/Cetus | Allies destroyed Cetus Guard 15114 | -6/Cetus | Destroyed Cetus Guard 15121 | -6/Cetus | Destroyed Cetus Guard 15124 | -6/Cetus | Allies destroyed Cetus Guard 15126 | -6/Cetus | Discovered exit to Factory (range 15) 15134 | -6/Cetus | Met Revision 17 15154 | -6/Cetus | Lost 7 allies 15218 | -6/Cetus | Security sweep announced 15430 | -6/Cetus | Build established: Scavenger-Tank 15552 | -6/Cetus | Identified exit to Archives 15562 | -6/Cetus | Entered Archives 15562 | -6/Archives | Accompanied by 7 allies (A7) 15567 | -6/Archives | Received a hacking code to weaken MAIN.C 15590 | -6/Archives | Met Zhirov 15596 | -6/Archives | Reinforcements dispatched to Archives 15602 | -6/Archives | Unable to access archive contents 15605 | -6/Archives | Discovered new exit (range 15) 15618 | -6/Archives | Read partially decrypted archive contents 15622 | -6/Archives | Discovered new exit (range 16) 15654 | -6/Archives | Zhirov detonated Archives 15662 | -6/Archives | Identified exit to Hub_04(d) 15685 | -6/Archives | Lost 7 allies 15701 | -6/Archives | Discovered exit to Factory (range 16) 15747 | -6/Archives | Entered Hub_04(d) 15763 | -6/Hub_04(d) | Discovered exit to Factory (range 17) 15810 | -6/Hub_04(d) | Garrison activated, responded to threat 16222 | -6/Hub_04(d) | Discovered exit to Factory (range 4) 16273 | -6/Hub_04(d) | Network Hub disabled 16279 | -6/Hub_04(d) | Spotted Lightning 16282 | -6/Hub_04(d) | Spotted Lightning 16283 | -6/Hub_04(d) | Spotted Lightning 16293 | -6/Hub_04(d) | Core integrity fell below 50% 16297 | -6/Hub_04(d) | System corruption reached 10% 16297 | -6/Hub_04(d) | Entered Factory 16297 | -5/Factory | Evolved 2 slots: Utility x1, Weapon x1 16326 | -5/Factory | Lost 5 parts (1p1u3w) 16850 | -5/Factory | Build established: Scavenger-Skirmisher 17171 | -5/Factory | Discovered new exit (range 18) 17563 | -5/Factory | Garrison activated, responded to threat 17898 | -5/Factory | Repaired Centrium Medium Armor Plating? 17920 | -5/Factory | Build established: Hacker-Skirmisher 18104 | -5/Factory | Discovered new exit (range 11) 18107 | -5/Factory | Identified exit to Upper Caves 18508 | -5/Factory | Entered another Factory area 18508 | -4/Factory | Evolved 2 slots: Utility x2 18599 | -4/Factory | Incoming investigation squad redirected 18992 | -4/Factory | Build established: Scavenger-Skirmisher 19226 | -4/Factory | Identified exit to Upper Caves 19226 | -4/Factory | Identified exit to Armory 19567 | -4/Factory | Lost 12 parts (2p3n2u5w) 19729 | -4/Factory | Identified exit to Research 20403 | -4/Factory | Entered Research 20403 | -3/Research | Evolved 2 slots: Propulsion x1, Utility x1 20563 | -3/Research | Repaired Broken Thunder Leg 20603 | -3/Research | Revision forces began assault on 0b10 20637 | -3/Research | Met up with Revision 17++ 20713 | -3/Research | Build established: Hacker-Skirmisher 21103 | -3/Research | Research terminal network offline 21157 | -3/Research | Discovered new exit (range 11) 21186 | -3/Research | Build established: Scavenger-Assassin 21642 | -3/Research | Found Prototype Device 21642 | -3/Research | Identified Adv. Kinecellerator 21756 | -3/Research | Build established: Hacker-Skirmisher 21933 | -3/Research | Found Hvy. Reactive Plating 22000 | -3/Research | Discovered new exit (range 18) 22082 | -3/Research | Spotted Striker 22084 | -3/Research | Entered another Research area 22084 | -2/Research | Evolved 2 slots: Utility x2 22262 | -2/Research | Build established: Skirmisher 23337 | -2/Research | Found Prototype Hackware 23337 | -2/Research | Identified Exp. System Shield 23486 | -2/Research | Cargo convoy interrupted 23486 | -2/Research | P-80 Master assimilated hostile A-27 Freighter 23504 | -2/Research | Incoming assault squad redirected 23507 | -2/Research | Incoming assault squad redirected 23513 | -2/Research | Spotted Executioner 23520 | -2/Research | Found Prototype Launcher 23520 | -2/Research | Identified Gui. Micro-nuke Launcher 23523 | -2/Research | System corruption reached 10% 23531 | -2/Research | Destroyed Executioner 23535 | -2/Research | Found Gui. Micro-nuke Launcher 23577 | -2/Research | Lost 10 parts (1p3u6w) 23589 | -2/Research | Found Gui. Micro-nuke Launcher 23593 | -2/Research | Found Gui. Micro-nuke Launcher 23602 | -2/Research | Destroyed 12 combat bots 23834 | -2/Research | First assault squad dispatched 23892 | -2/Research | Core integrity fell below 50% 23918 | -2/Research | Lost 8 parts (1p1n4u2w) 23923 | -2/Research | Spotted B-90 Cyclops 23946 | -2/Research | System corruption reached 30% 24026 | -2/Research | Local machine network offline 24042 | -2/Research | Core integrity fell below 20% 24046 | -2/Research | Destroyed by H-88 Terminator with KE Penetrator Last Messages --------------- diagnostic review. 24030_ Centrium Leg destroyed. 24031_ Dropped Hcp. Storage Unit. 24033_ Slug penetrates Wall. 24033_ Penetrated by Slug. 24037_ Slug penetrates Wall. 24039_ Critical hit (Destroy). 24039_ Enh. Armored Heavy Treads destroyed. 24040_ Slammed into X-87 Electro. 24040_ Adv. Hacking Suite destroyed. 24041_ Slammed into X-87 Electro. 24041_ Slug penetrates Wall. 24042_ Penetrated by Slug. 24044_ System corrupted: IFF burst signal emitted. 24045_ Penetrated by Slug. 24045_ Critical hit (Burn: +37). 24045_ Adv. Terrain Scan Processor destroyed. 24046_ Slug penetrates Wall. 24046_ Penetrated by Slug. [Achievement: Back For More] Map ----- +----------------------------------------------------+ | | | | | | | | | | | ?????????????????????????????????????????????????? | | ?????????????????????????????????????????????????? | | ?????????????????????????????????????????????????? | | ???????????????##??#######???????????????????????? | | ??????????????? #???????????????????????? | | ??????????????? #???????????????????????? | | ???????????????""" """ #???????????????????????? | | ???????????????""" """ =#???????????????????????? | | ????????????# """ """ #???????????????????????? | | ????????????# ################????????? | | ????????????# # [*!=[ #????????? | | ????????????? """ """ " /][! #????????? | | ?????????????? """ """ # !] #????????? | | ????????????# """ """ / xgs #????????? | | ????????????# #g ######+#######?????? | | ????????????# = #hx #??# #?????? | | ???????????############### g #??# #?????? | | ???????????# ^ ho #??#""" #?????? | | ???????????# gu #??#"""" #?????? | | ?????####??# = #??#"""" #?????? | | ?????"""" ?# %[ @ #??# """ ! #?????? | | ?# """"" ?# i######+########??# #?????? | | ?# """"" # #??? ????????# #?????? | | ?# # #?# ! ?????????#########?????? | | ?# + #?# "" ??????????????????????? | | ?+ # #?#""" #?????????????????????? | | ?# # #?#"T #?????????????????????? | | ?# ?# #?#""" #?????????????????????? | | ?#########?# #???"" #?????????????????????? | | ???????????# #???? #?????????????????????? | | ???????????# #???? #?????????????????????? | | ???????????# #????#######?????????????????????? | | ???????????# #????????????????????????????????? | | ???????????# #????????????????????????????????? | | ???????????# #????????????????????????????????? | | ???????????# #????????????????????????????????? | | ???????????# #????????????????????????????????? | | ???????????# #????????????????????????????????? | | ###+######## #????????????????????????????????? | | #????????????????????????????????? | | #????????????????????????????????? | | #????????????????????????????????? | | !%= #????????????????????????????????? | | ###+######## #????????????????????????????????? | | ? ????# #????????????????????????????????? | +----------------------------------------------------+ Best States ------------- Heat Dissipation 93 Energy Generation 43 Energy Capacity 550 Matter Stores 300 Matter Capacity 300 Sight Range 16 Terrain Scan Range 20 Terrain Scan Density 210 Jamming Range 16 Base Temperature (-) 200 Armor Coverage 825 Resistance: KI 40 Resistance: TH 25 Power Shielding 90 Phase Shifting 10 Evasion (%) 80 Targeting Accuracy 24 Recoil Reduction 4 Particle Charging 25 Offensive Hacking 26 Defensive Hacking 16 Item Schematics ----------------- Structural Scanner | -9/Materials | Scanalyzed Machine Analyzer | -9/Materials | Scanalyzed Combat Drone Bay | -7/Data Miner | Free Lgt. Regenerative Plating | -7/Data Miner | Free Cld. Cesium-ion Thruster | -7/Data Miner | Free Exp. Targeting Computer | -7/Data Miner | Free Cld. Plasma Cannon | -7/Data Miner | Free Hvy. Treads | -7/Data Miner | Free Imp. Transmission Jammer | -7/Data Miner | Free Lance | -7/Data Miner | Free Adv. Power Amplifier | -7/Data Miner | Free Robot Schematics ------------------ R-10 Processor | -7/Data Miner | Free L-41 Fighter | -7/Data Miner | Free C-17 Slicer | -7/Data Miner | Free B-48 Gladiator | -7/Data Miner | Free Fabricated ------------ Nothing Repaired ---------- Centrium Medium Armor Plating | 19% | -5/Factory Thunder Leg | 19% | -3/Research | Broken Alien Tech Used ----------------- None Achievements -------------- Back For More Main Advantage Oh No You Don't! Prison Break Project G-00 Revising The Future Revolutionary Research Challenges ------------ None Game ------ Seed FlakCargoStatue Manual? 0 Play Time 05:36:49 Cumulative 114.6 hours Start 2025.07.26 @ 23:55:16 End 2025.07.27 @ 17:31:01 Sessions 5 Manual Loads 0 Difficulty Rogue Special Mode None Game No. 50 Rogue 50 Adventurer 0 Explorer 0 Win Type - Total 7 Types 7/0/0/0/0/0/0/0/0/0 Lore% 63 Gallery% 56 Achievement% 46 Wizard Run 0 Options --------- Layout 0 ASCII 0 Keyboard 1 Movement Numpad Keybinds 0 Fullscreen 1 Font 18/Cog Map View 76x50 Zoom Use 0% Tactical HUD 1 Map Filters NONE Filters NONE Steam 1 RUN: 87d78b5a-abf5-46e7-93f1-00b475e7d19f